Cogmind - Beta 9.3 @@@ ROGUE MODE // 2019.12.20 @ 10:55:38 // Winter2019/RPGLIKE Player: KernelPanic Result: Destroyed by Y-54 Guardian with Gatling Laser Performance ------------- Evolutions (3) 1500 Regions Visited (5) 1000 Robots Destroyed (6) 30 Value Destroyed (142) 142 Prototype IDs (0) 0 Alien Tech Used (0) 0 Bonus (0) 0 TOTAL SCORE: 2672 Bonus ------- None Cogmind --------- Core Integrity 0/1350 Matter 300/300 Energy 98/100 System Corruption 3% Temperature Cool (14) Movement Hovering (60) Location -7/Lower Caves Parts ------- > --- POWER (1) -------- (None) > --- PROPULSION (2) --- Airjet Gravmag System > --- UTILITY (2) ------ Advanced Signal Interpreter Terrain Scanner > --- WEAPON (2) ------- Gauss Rifle > --- INVENTORY (2) ---- Xenon Bombardment Thruster Hacking Suite Peak State ------------ > --- POWER ------------ (None) > --- PROPULSION ------- Airjet Gravmag System > --- UTILITY ---------- Advanced Signal Interpreter Terrain Scanner > --- WEAPON ----------- Gauss Rifle > --- INVENTORY -------- Medium Reactive Plating [Rating: 15] Favorites ----------- Power Light Ion Engine Engine Light Ion Engine Propulsion Wheel Leg Aluminum Leg Wheel Wheel Hover Unit Gravmag System Utility Terrain Scanner Device Terrain Scanner Processor Advanced Signal Interpreter Weapon Gauss Rifle Energy Gun Small Laser Ballistic Gun Gauss Rifle Build | -11 -10 -9 -8 -7 -7 ------- Run | Scr Mat Mat Mat Fac Low Slots Evolved 3 | 3 . . . . . Power . | . . . . . . Propulsion 1 | 1 . . . . . Utility 1 | 1 . . . . . Weapon 1 | 1 . . . . . Parts Attached 9 | 3 . 1 . 3 2 Power . | . . . . . . Engine . | . . . . . . Core . | . . . . . . Reactor . | . . . . . . Propulsion 5 | 2 . . . 1 2 Treads . | . . . . . . Leg . | . . . . . . Wheel 3 | 2 . . . 1 . Hover 2 | . . . . . 2 Flight . | . . . . . . Utility 2 | . . 1 . 1 . Device 1 | . . 1 . . . Storage . | . . . . . . Processor 1 | . . . . 1 . Hackware . | . . . . . . Protection . | . . . . . . Artifact . | . . . . . . Weapon 2 | 1 . . . 1 . Energy Gun 1 | 1 . . . . . Energy Cannon . | . . . . . . Ballistic Gun 1 | . . . . 1 . Ballistic Cannon . | . . . . . . Launcher . | . . . . . . Special Weapon . | . . . . . . Impact Weapon . | . . . . . . Slashing Weapon . | . . . . . . Piercing Weapon . | . . . . . . Special Melee Weapon . | . . . . . . Unidentified Prototypes . | . . . . . . Parts Lost 5 | . . 2 3 . . Power 1 | . . . 1 . . Propulsion 2 | . . . 2 . . Utility . | . . . . . . Weapon 2 | . . 2 . . . Highest Loss Streak 3 | . . 2 3 . . Average Slot Usage (%) 49 | . 71 79 41 32 68 Engine 3 | . 14 14 9 . . Wheel 14 | . 28 28 17 13 3 Hover 5 | . . . . . 22 Device 12 | . . 9 14 14 14 Processor 3 | . . . . . 14 Energy Gun 4 | . 28 26 . . . Ballistic Gun 5 | . . . . 4 14 Naked Turns . | . . . . . . Heaviest Build 6 | 5 5 6 4 5 5 Greatest Support 35 | 20 20 35 35 25 35 Greatest Overweight (x) . | . . . . . . Average Overweight (x) . | . . . . . . Largest Inventory Capacity 2 | 1 1 2 2 2 2 Average Capacity 1 | 1 1 1 2 2 2 Most Carried 2 | 1 1 1 2 2 2 Average Carried 1 | . 1 1 1 1 1 Final Capacity 2 | 1 1 2 2 2 2 Final Carried 2 | 1 1 1 2 2 2 Class Distribution -------------------- 50% | Hacker-Mutant 30% | Mutant 18% | Hacker-Scout Dominant Class ---------------- Mutant | -10/Materials Mutant | -9/Materials Mutant | -8/Materials Hacker-Mutant | -7/Factory Hacker-Scout | -7/Lower Caves Resources | -11 -10 -9 -8 -7 -7 ----------- Run | Scr Mat Mat Mat Fac Low Matter Collected 335 | 200 . . . . 135 Remotely . | . . . . . . Salvage Created 78 | . 11 . . . 67 Parts 17 | . 12 . 3 . 2 Haulers Intercepted . | . . . . . . Recyclers Shooed . | . . . . . . Parts Field Recycled . | . . . . . . Retrieved Matter . | . . . . . . Parts Self-Destructed 1 | . . . . . 1 Prevented . | . . . . . . Kills | -11 -10 -9 -8 -7 -7 ------- Run | Scr Mat Mat Mat Fac Low Combat Hostiles Destroyed 5 | . 3 . 1 . 1 Melee 1 | . . . 1 . . Guns 4 | . 3 . . . 1 Classes Destroyed 4 | . 2 . 1 . 1 Builder 1 | . 1 . . . . Swarmer 3 | . 3 . . . . Grunt 1 | . . . 1 . . Programmer 1 | . . . . . 1 Best Kill Streak 4 | . 4 . 1 . 1 Combat Bots Only 3 | . 3 . 1 . 1 Max Kills in Single Turn 1 | . 1 . 1 . 1 Gunslinging . | . . . . . . Exploded . | . . . . . . Melee 1 | . . . 1 . . Uniques/NPCs Destroyed . | . . . . . . Combat | -11 -10 -9 -8 -7 -7 -------- Run | Scr Mat Mat Mat Fac Low Damage Taken 1809 | . 120 584 579 54 472 Core 1510 | . 96 468 507 43 396 Absorbed by Shields . | . . . . . . Redirected to Core 982 | . 64 366 244 43 265 Core Remaining (%) 52 | 100 84 6 20 . . Volleys Fired 31 | . 13 . . . 18 Largest 2 | . 2 . . . 1 Hottest 80 | . 80 . . . 28 Shots Fired 44 | . 26 . . . 18 Gun 44 | . 26 . . . 18 Cannon . | . . . . . . Launcher . | . . . . . . Special . | . . . . . . Kinetic 18 | . . . . . 18 Thermal 26 | . 26 . . . . Explosive . | . . . . . . Electromagnetic . | . . . . . . Robot Hit Streak 6 | . 4 . . . 6 Robot Miss Streak 3 | . 3 . . . 3 Penetration Max . | . . . . . . Secondary Targets . | . . . . . . Shots Hit Robots 24 | . 13 . . . 11 Core Hits 7 | . 4 . 1 . 2 Critical Hits . | . . . . . . Critical Kills . | . . . . . . Critical Parts Destroyed . | . . . . . . Melee Attacks . | . . . . . . Impact . | . . . . . . Slashing . | . . . . . . Piercing . | . . . . . . Sneak Attacks . | . . . . . . Combat Hostiles . | . . . . . . Follow-up Attacks . | . . . . . . Damage Inflicted 520 | . 113 . 10 . 397 Guns 510 | . 113 . . . 397 Cannons . | . . . . . . Explosions . | . . . . . . Melee . | . . . . . . Ramming 10 | . . . 10 . . Kinetic 397 | . . . . . 397 Thermal 113 | . 113 . . . . Explosive . | . . . . . . Electromagnetic . | . . . . . . Impact . | . . . . . . Slashing . | . . . . . . Piercing . | . . . . . . Highest Corruption 3 | . . . . . 3 Average Corruption 2 | . . . . . 2 Corruption Purged . | . . . . . . Effects 5 | . . . . . 5 Message Errors 3 | . . . . . 3 Energy Discharges 1 | . . . . . 1 Data Loss (minor) 1 | . . . . . 1 Overload Shots . | . . . . . . Overflow Damage . | . . . . . . Projectiles . | . . . . . . Explosions . | . . . . . . Melee . | . . . . . . Knockbacks . | . . . . . . Impact . | . . . . . . Kinetic . | . . . . . . Secondary . | . . . . . . Self-Inflicted Damage 5 | . . . 5 . . Shots . | . . . . . . Rammed 1 | . . . 1 . . Targets Rammed 1 | . . . 1 . . Kicked . | . . . . . . Crushed . | . . . . . . Highest Temperature 216 | . 216 . . . . Average Temperature 103 | . 103 . . . . Received Heat Transfer 348 | . . 99 225 . 24 Siege Activations . | . . . . . . Robots Corrupted . | . . . . . . Combat Hostiles . | . . . . . . Parts Fried . | . . . . . . Impact Corruptions . | . . . . . . Robots Melted . | . . . . . . Combat Hostiles . | . . . . . . Parts Melted . | . . . . . . Heat Transferred 250 | . 250 . . . . Parts Sabotaged . | . . . . . . Parts Stolen . | . . . . . . Parts Stripped . | . . . . . . Power Chain Reactions . | . . . . . . Missiles Intercepted . | . . . . . . Alert | -11 -10 -9 -8 -7 -7 ------- Run | Scr Mat Mat Mat Fac Low Peak Influence 412 | . 75 91 44 412 . Average Influence 192 | . 33 55 22 294 . Maximum Alert Level 2 | . . . . 2 . Low Security (%) 50 | 100 100 100 100 18 . Level 1 13 | . . . . 22 . Level 2 35 | . . . . 58 . Level 3 . | . . . . . . Level 4 . | . . . . . . Level 5 . | . . . . . . High Security . | . . . . . . Max Security . | . . . . . . Squads Dispatched 3 | . . 2 1 . . Investigation 2 | . . 2 . . . Extermination . | . . . . . . Reinforcement 1 | . . . 1 . . Assault . | . . . . . . Garrison . | . . . . . . Intercept . | . . . . . . Construction Impeded . | . . . . . . Haulers Reinforced . | . . . . . . Stealth | -11 -10 -9 -8 -7 -7 --------- Run | Scr Mat Mat Mat Fac Low Distress Signals 1 | . . . 1 . . Communications Jammed . | . . . . . . Distress Signals . | . . . . . . Times Spotted 31 | . 5 11 9 1 5 Peak Tracking Total 10 | . 4 10 7 1 4 Tactical Retreats 5 | . . 3 1 . 1 Traps | -11 -10 -9 -8 -7 -7 ------- Run | Scr Mat Mat Mat Fac Low Traps Triggered 3 | . . 2 . 1 . Indirectly . | . . . . . . Trap Hack Attempts . | . . . . . . Triggered . | . . . . . . Disarmed . | . . . . . . Reprogrammed . | . . . . . . Reused . | . . . . . . Traps Extracted . | . . . . . . Installed . | . . . . . . Triggered . | . . . . . . Machines | -11 -10 -9 -8 -7 -7 ---------- Run | Scr Mat Mat Mat Fac Low Machines Disabled . | . . . . . . Max in Single Turn . | . . . . . . Machines Sabotaged . | . . . . . . Garrisons Compromised . | . . . . . . Overloaded Fab Kills . | . . . . . . Fab Network Shutdowns 1 | . . . . 1 . Hacking | -11 -10 -9 -8 -7 -7 --------- Run | Scr Mat Mat Mat Fac Low Machines Accessed 5 | . . . 2 3 . Terminals 2 | . . . 2 . . Fabricators 1 | . . . . 1 . Repair Stations . | . . . . . . Recycling Units . | . . . . . . Scanalyzers 2 | . . . . 2 . Garrison Access . | . . . . . . Total Hacks 10 | . . . 3 7 . Successful 5 | . . . 2 3 . Failed 5 | . . . 1 4 . Catastrophic . | . . . . . . Database Lockouts . | . . . . . . Manual 3 | . . . 3 . . Terminals 3 | . . . 3 . . Fabricators 2 | . . . . 2 . Repair Stations . | . . . . . . Recycling Units . | . . . . . . Scanalyzers 5 | . . . . 5 . Garrison Access . | . . . . . . Terminal Hacks 2 | . . . 2 . . Branch Access Points 1 | . . . 1 . . Unreport Threat 1 | . . . 1 . . Fabricator Hacks 2 | . . . . 2 . Network Status 1 | . . . . 1 . Build 1 | . . . . 1 . Repair Station Hacks . | . . . . . . Recycling Unit Hacks . | . . . . . . Scanalyzer 1 | . . . . 1 . Insert Component 1 | . . . . 1 . Garrison Access Hacks . | . . . . . . Unauthorized Hacks . | . . . . . . Terminals . | . . . . . . Fabricators . | . . . . . . Repair Stations . | . . . . . . Recycling Units . | . . . . . . Scanalyzers . | . . . . . . Garrison Access . | . . . . . . Data Cores Recovered . | . . . . . . Used . | . . . . . . Hacking Detections 3 | . . . 1 2 . Full Trace Events . | . . . . . . Feedback Events . | . . . . . . Feedback Blocked . | . . . . . . Robot Schematics Acquired . | . . . . . . Robots Built . | . . . . . . Matter . | . . . . . . Time . | . . . . . . Total Robot Build Rating . | . . . . . . Part Schematics Acquired . | . . . . . . Parts Built 1 | . . . . 1 . Matter 190 | . . . . 190 . Time 95 | . . . . 95 . Total Part Build Rating 5 | . . . . 5 . Parts Repaired . | . . . . . . Time . | . . . . . . Parts Recycled . | . . . . . . Recycled Matter . | . . . . . . Retrieved Matter . | . . . . . . Retrieved Components . | . . . . . . Parts Scanalyzed 1 | . . . . 1 . Part Schematics Acquired . | . . . . . . Parts Damaged . | . . . . . . Bothacking | -11 -10 -9 -8 -7 -7 ------------ Run | Scr Mat Mat Mat Fac Low Used RIF Installer . | . . . . . . Robots Hacked . | . . . . . . Non-combat . | . . . . . . Combat . | . . . . . . Robot Hacks Applied . | . . . . . . Relay Couplers Released . | . . . . . . Robots Rewired . | . . . . . . Allies Hacked . | . . . . . . Hacks Repelled . | . . . . . . Allies | -11 -10 -9 -8 -7 -7 -------- Run | Scr Mat Mat Mat Fac Low Total Allies . | . . . . . . Largest Group . | . . . . . . Highest-Rated Group . | . . . . . . Highest-Rated Ally . | . . . . . . Total Orders . | . . . . . . Ally Attacks . | . . . . . . Total Damage . | . . . . . . Kills . | . . . . . . Allies Corrupted . | . . . . . . Allies Melted . | . . . . . . Intel | -11 -10 -9 -8 -7 -7 ------- Run | Scr Mat Mat Mat Fac Low Robot Analysis Total . | . . . . . . Derelict Logs Recovered . | . . . . . . Drone Launches . | . . . . . . Drone Recoveries . | . . . . . . Exploration | -11 -10 -9 -8 -7 -7 ------------- Run | Scr Mat Mat Mat Fac Low Turns Passed 1111 | 25 93 97 118 518 260 Spaces Moved 1239 | 20 64 120 163 512 360 Core 64 | . . . 48 16 . Treads . | . . . . . . Legs 11 | 11 . . . . . Wheels 829 | 9 64 120 115 496 25 Hover 335 | . . . . . 335 Flight . | . . . . . . Fastest Speed 50 | 80 80 80 50 50 56 Average Speed 73 | 102 80 80 71 79 60 Slowest Speed 120 | 120 80 80 80 80 80 Overloaded Moves . | . . . . . . Propulsion Burnouts . | . . . . . . Robots Hopped . | . . . . . . Cave-ins Triggered . | . . . . . . Exploration Rate (%) 22 | 2 22 21 22 16 51 Regions Visited 5 Branch Regions 1 Pre-discovered Areas . | . . . . . . Known Exits Taken 1 | . . . . 1 . Unknown Exits Taken 4 | 1 1 1 1 . . Scrap Searched 3 | . . . . . 3 Spaces Dug . | . . . . . . Terrain Destroyed . | . . . . . . Melee . | . . . . . . Projectile . | . . . . . . AOE . | . . . . . . Actions | -11 -10 -9 -8 -7 -7 --------- Run | Scr Mat Mat Mat Fac Low Total 1395 | 23 79 120 164 624 385 Wait 103 | . 3 . . 99 1 Move 1234 | 19 63 119 162 511 360 Hop . | . . . . . . Pick Up 5 | . . . 1 2 2 Fast Attach 8 | 3 . 1 . 3 1 Attach 1 | . . . . . 1 Detach 1 | 1 . . . . . Swap . | . . . . . . Drop 4 | . . . . 2 2 Fire 31 | . 13 . . . 18 Melee . | . . . . . . Ram 1 | . . . 1 . . Kick . | . . . . . . Crush . | . . . . . . Escape Stasis . | . . . . . . Rewire . | . . . . . . Trap . | . . . . . . Miscellaneous 7 | . . . . 7 . Route ------- -11/Scrapyard -10/Materials -9/Materials -8/Materials (discovered 3 exits: *Fac / Sto x2) -7/Factory -7/Lower Caves History --------- Turn | Location | Event 1 | -11/Scrapyard | Upgraded with Propulsion slot (x1) 1 | -11/Scrapyard | Upgraded with Utility slot (x1) 1 | -11/Scrapyard | Upgraded with Weapon slot (x1) 1 | -11/Scrapyard | Discovered new exit (range 3) 26 | -11/Scrapyard | Entered Materials 95 | -10/Materials | Discovered new exit (range 15) 119 | -10/Materials | Entered another Materials area 121 | -9/Materials | Reached level 2 188 | -9/Materials | Core integrity fell below 50% 204 | -9/Materials | Core integrity fell below 20% 214 | -9/Materials | Discovered new exit (range 4) 216 | -9/Materials | Entered another Materials area 217 | -8/Materials | Core integrity fell below 50% 217 | -8/Materials | Core integrity fell below 20% 218 | -8/Materials | Reached level 3 318 | -8/Materials | Build established: Mutant 328 | -8/Materials | Identified exit to Storage 331 | -8/Materials | Discovered new exit (range 8) 334 | -8/Materials | Entered Factory 335 | -7/Factory | Core integrity fell below 50% 336 | -7/Factory | Reached level 4 341 | -7/Factory | Lost 3 parts (1p2n) 431 | -7/Factory | Local fabrication network quarantined 510 | -7/Factory | Fabricated Imp. Maneuvering Thrusters (x1) 637 | -7/Factory | Build established: Hacker-Mutant 848 | -7/Factory | Discovered new exit (range 3) 849 | -7/Factory | Identified exit to Lower Caves 852 | -7/Factory | Entered Lower Caves 889 | -7/Lower Caves | Core integrity fell below 20% 1109 | -7/Lower Caves | Attracted the attention of an 0b10 checkpoint 1112 | -7/Lower Caves | Destroyed by Y-54 Guardian with Gatling Laser Last Messages --------------- 00923_ Acquired 33 matter. 00923_ Acquired Xenon Bombardment Thruster. 00928_ Acquired 10 matter. 00935_ Penetrated by Slug. 00975_ Slug penetrates Wall. 01017_ AIQG&0BZFDNW:XV3|V L<2GQ/VH/=WCFQPU1 01028_ Slug penetrates Wall. 01037_ FR9LYFDVPY% RW6 3FAB2Y3N 01037_ Slug penetrates Wall. 01048_ Drone sends a signal. 01053_ Searching scrap... 01053_ Found 20 Matter. 01053_ Found Gauss Rifle. 01053_ Found Adv. Sensor Array. 01053_ Found Shock Rifle. 01053_ Found Hacking Suite. 01054_ Dropped Med. Reactive Plating. 01055_ Acquired Hacking Suite. 01060_ TFSB X=TB L|R/AHXMW BD1,SCSZNUKI 01109_ Y-54 Guardian: "INTERCEPTING UNREGISTERED DERELICT." Map ----- +----------------------------------------------------+ | | | | | | | ?????????????????????????????????????????????????? | | ?????????????????????????????????????????????????? | | ?????????????????????????????????????????????????? | | ?????????????????????????????????????????????????? | | ?????????????????????????????????????????????????? | | ?????????????????????????????????????????????????? | | ???????????????????????????#????#????#???????????? | | ????????????????????????#????#???##??##?#????????? | | ??????????????????????????????????#?????#?#??????? | | ???????????????????#?????#????##?##??#?####?#????? | | ???????????????????#????????#?#?#?#?##?##?##?????? | | ???????????????????#??#???#?#?###??#???##?####???? | | ??????????????????????#?#??#??##?#?#########??#??? | | ??????????????????#??##??????##?##?##?###?#?#?#### | | ???????????????????????#####????#??##?#?#??#?##??? | | ?????????????????##???### #####?#######?#?#????## | | ?????????????????#?????# ### ##??#???##??? | | ????????????????????##?# ##????###?## | | ?????????????????#?????# ##??#????## | | ??????????????#?????##?## #####??#### | | ???????????????????????## ##???##?#?# | | ???????????????## ## ### ## ####?###?## | | ????????????????# @ #?## ## ########## | | ????????????# ###b ### ### ### | | ????????????## #### ## | | ?????????????# #### | | ???????????# ## Y #?## ##### | | ???????????# ???## # b ########## | | ??????????????????# # ###?#### ## | | ????????????? ???# ## ######### ## | | ?????????? ? #?# #?# ####?#?# # | | ????????? ???############# #?###### | | #??#? ? ? ??#?##??## #### ###### ### #### | | ????? ? ?#?#?#??## ########### ######?# | | ??????? ??######### ###?####?# #####?? | | ??#??? ?#?#?###### ######### ### ? | | ??? #??####?##### ## ## ## | | ? ?##?#??#?######## #? ?? #### | | ?????#?####?#### #### ### ##?## | | ????####?###?## ## #?#?#?#### | | ???## ####?#?# ### ## ########## | | ##### ###### #### ### ##########?# | | ?#?### ###### #### ######?###?###### | | ??##?## #### ## ## ##??########? | | ?#?#?## ### ## ## #####?####?? | | #??### ### ## ### ######### | | ???### #### ##### | +----------------------------------------------------+ Best States ------------- Heat Dissipation 31 Energy Generation 10 Energy Capacity 125 Matter Stores 300 Matter Capacity 300 Sight Range 17 Robot Scan Range 12 Terrain Scan Range 14 Terrain Scan Density 510 Evasion (%) 53 Offensive Hacking 15 Defensive Hacking 10 Item Schematics ----------------- None Robot Schematics ------------------ None Fabricated ------------ Imp. Maneuvering Thrusters | x1 | -7/Factory | Preloaded Alien Tech Used ----------------- None Achievements -------------- None Challenges ------------ None RPGLIKE | -11 -10 -9 -8 -7 -7 --------- Run | Scr Mat Mat Mat Fac Low Levels Raised 3 | . . 1 1 1 . XP Earned 8600 | 3000 350 1500 1600 1500 650 XP Spent 7450 | 1875 . 2610 1475 1490 . Upgrades 41 | 6 . 11 16 8 . Propulsion Slot 1 | 1 . . . . . Utility Slot 1 | 1 . . . . . Weapon Slot 1 | 1 . . . . . Core Integrity 15 | . . . 15 . . Heat Dissipation 1 | . . . 1 . . Mass Support 3 | . . 3 . . . Inventory Capacity 2 | 1 . 1 . . . Sight Range 1 | . . 1 . . . Sensor Range 6 | 2 . . . 4 . Terrain Scan Density 5 | . . 3 . 2 . Hack Attack % 3 | . . 3 . . . Hack Defense % 2 | . . . . 2 . Protomatter Created 98 | . 47 . 51 . . Integrity Restored 153 | . . . . 153 . Core 153 | . . . . 153 . Protomatter Decayed 14 | . 14 . . . . Game ------ Seed CoolantCombatFirepult Manual? 0 Play Time 00:15:47 Cumulative 110.0 hours Start 2019.12.20 @ 10:39:36 End 2019.12.20 @ 10:55:38 Sessions 1 Manual Loads 0 Difficulty Rogue Special Mode Winter2019/RPGLIKE Game No. 195 Rogue 192 Adventurer 1 Explorer 2 Win Type - Total 4 Types 4/0/0/0/0/0/0 Lore% 64 Gallery% 64 Achievement% 53 Wizard Run 0 Options --------- ASCII 0 Keyboard 1 Movement Numpad Keybinds 0 Fullscreen 2 Font 12/Smallcaps Map View 83x54 Tactical HUD 1 Map Filters NONE Filters NONE Steam 1 RUN: 123b9d6a-a5aa-4e28-af9f-a1ec8f4ca819